fUSD/lending_fUSD_20250720
["ID","MTS","AMOUNT","RATE_DAILY","PERIOD"]
[373591541,1753055472987,-504.05,0.00019287,2]
[373591542,1753055472996,-480.0,0.00019287,2]
[373591543,1753055473006,-480.0,0.00019287,2]
[373591544,1753055473015,-562.45,0.00019287,2]
[373591545,1753055473025,-480.0,0.00019287,2]
[373591546,1753055473035,-874.56,0.00019287,2]
[373591547,1753055473044,-480.0,0.00019287,2]
[373591548,1753055473053,-480.0,0.00019287,2]
[373591549,1753055473062,-1406.05,0.00019287,2]
[373591550,1753055473071,-460.0,0.00019287,2]
[373591551,1753055473080,-1900.03,0.00019287,2]
[373591552,1753055473089,-480.0,0.00019287,2]
[373591553,1753055473098,-480.0,0.00019287,2]
[373591554,1753055473107,-480.0,0.00019287,2]
[373591555,1753055473117,-2845.77,0.00019287,2]
[373591556,1753055473126,-480.0,0.00019287,2]
[373591557,1753055473135,-496.31,0.00019287,2]
[373591558,1753055473144,-480.0,0.00019287,2]
[373591559,1753055473154,-480.0,0.00019287,2]
[373591560,1753055473163,-480.0,0.00019287,2]
[373591561,1753055473172,-746.26,0.00019287,2]
[373591562,1753055473181,-480.0,0.00019287,2]
[373591563,1753055473190,-480.0,0.00019287,2]
[373591564,1753055473199,-480.0,0.00019287,2]
[373591565,1753055473209,-480.0,0.00019287,2]
[373591566,1753055473218,-440.0,0.00019287,2]
[373591567,1753055473227,-878.11,0.00019287,2]
[373591568,1753055473236,-480.0,0.00019287,2]
[373591569,1753055473246,-480.0,0.00019287,2]
[373591570,1753055473255,-480.0,0.00019287,2]
[373591571,1753055473264,-480.0,0.00019287,2]
[373591572,1753055473273,-740.16,0.00019287,2]
[373591573,1753055473284,-580.93056019,0.00019287,2]
[373591574,1753055473293,-480.0,0.00019287,2]
[373591575,1753055473302,-787.48,0.00019287,2]
[373591576,1753055473312,-480.0,0.00019287,2]
[373591577,1753055473321,-556.69,0.00019287,2]
[373591578,1753055473330,-482.75481427,0.00019287,2]
[373591579,1753055473340,-480.0,0.00019287,2]
[373591580,1753055473349,-480.0,0.00019287,2]
[373591581,1753055473358,-1336.05,0.00019287,2]
[373591582,1753055473367,-480.0,0.00019287,2]
[373591583,1753055473376,-1705.21,0.00019287,2]
[373591584,1753055473385,-754.23,0.00019287,2]
[373591585,1753055473395,-1341.37,0.00019287,2]
[373591586,1753055473405,-1712.3,0.00019287,2]
[373591587,1753055473414,-480.0,0.00019287,2]
[373591588,1753055473424,-775.44,0.00019287,2]
[373591589,1753055473433,-480.0,0.00019287,2]
[373591590,1753055473442,-480.0,0.00019287,2]
[373591591,1753055473452,-480.0,0.00019287,2]
[373591592,1753055473461,-9042.14,0.00019287,2]
[373591593,1753055473471,-480.0,0.00019287,2]
[373591594,1753055473480,-1140.08,0.00019287,2]
[373591595,1753055473489,-480.0,0.00019287,2]
[373591596,1753055473499,-579.3,0.00019287,2]
[373591597,1753055473508,-346.88307619,0.00019287,2]
[373591598,1753055473517,-799.74,0.00019287,2]
[373591599,1753055473527,-460.0,0.00019287,2]
[373591600,1753055473537,-480.0,0.00019287,2]
[373591601,1753055473546,-480.0,0.00019287,2]
[373591602,1753055473555,-480.0,0.00019287,2]
[373591603,1753055473565,-480.0,0.00019287,2]
[373591604,1753055473574,-480.0,0.00019287,2]
[373591605,1753055473583,-480.0,0.00019287,2]
[373591606,1753055473593,-480.0,0.00019287,2]
[373591607,1753055473602,-677.35,0.00019287,2]
[373591608,1753055473612,-842.64,0.00019287,2]
[373591609,1753055473621,-734.28,0.00019287,2]
[373591610,1753055473630,-706.59,0.00019287,2]
[373591611,1753055473639,-480.0,0.00019287,2]
[373591612,1753055473649,-6146.34,0.00019287,2]
[373591613,1753055473658,-4993.51,0.00019287,2]
[373591614,1753055473667,-480.0,0.00019287,2]
[373591615,1753055473676,-480.0,0.00019287,2]
[373591616,1753055473685,-480.0,0.00019287,2]
[373591617,1753055473695,-480.0,0.00019287,2]
[373591618,1753055473704,-1566.11,0.00019287,2]
[373591619,1753055473713,-5552.39,0.00019287,2]
[373591620,1753055473722,-482.32,0.00019287,2]
[373591621,1753055473732,-739.01,0.00019287,2]
[373591622,1753055473741,-480.0,0.00019287,2]
[373591623,1753055473754,-480.0,0.00019287,2]
[373591624,1753055473763,-641.48,0.00019287,2]
[373591625,1753055473772,-480.0,0.00019287,2]
[373591626,1753055473781,-480.0,0.00019287,2]
[373591627,1753055473791,-480.0,0.00019287,2]
[373591628,1753055473800,-480.0,0.00019287,2]
[373591629,1753055473809,-480.0,0.00019287,2]
[373591630,1753055473818,-496.3,0.00019287,2]
[373591631,1753055473829,-570.59,0.00019287,2]
[373591632,1753055473838,-480.0,0.00019287,2]
[373591633,1753055473848,-480.0,0.00019287,2]
[373591634,1753055473857,-480.0,0.00019287,2]
[373591635,1753055473866,-1082.49,0.00019287,2]
[373591636,1753055473876,-480.0,0.00019287,2]
[373591637,1753055473885,-480.0,0.00019287,2]
[373591638,1753055473895,-2668.7,0.00019287,2]
[373591639,1753055473905,-480.0,0.00019287,2]
[373591640,1753055473915,-480.0,0.00019287,2]
[373591641,1753055473926,-754.25,0.00019287,2]
[373591642,1753055473938,-601.28,0.00019287,2]
[373591643,1753055473947,-3251.3,0.00019287,2]
[373591644,1753055473959,-179.53871215,0.00019287,2]
[373591645,1753055473968,-480.0,0.00019287,2]
[373591646,1753055473981,-1368.15,0.00019287,2]
[373591647,1753055473992,-480.0,0.00019287,2]
[373591648,1753055474002,-1027.05,0.00019287,2]
[373591649,1753055474013,-601.4,0.00019287,2]
[373591650,1753055474023,-480.0,0.00019287,2]
[373591651,1753055474034,-480.0,0.00019287,2]
[373591652,1753055474043,-2641.79,0.00019287,2]
[373591653,1753055474052,-480.0,0.00019287,2]
[373591654,1753055474063,-480.0,0.00019287,2]
[373591655,1753055474074,-480.0,0.00019287,2]
[373591656,1753055474084,-1818.69,0.00019287,2]
[373591657,1753055474094,-2500.89,0.00019287,2]
[373591658,1753055474104,-480.0,0.00019287,2]
[373591659,1753055474113,-2805.44,0.00019287,2]
[373591660,1753055474123,-480.0,0.00019287,2]
[373591661,1753055474132,-480.0,0.00019287,2]
[373591662,1753055474142,-480.0,0.00019287,2]
[373591663,1753055474151,-480.0,0.00019287,2]
[373591664,1753055474162,-517.96,0.00019287,2]
[373591665,1753055474171,-1372.51,0.00019287,2]
[373591666,1753055474180,-480.0,0.00019287,2]
[373591667,1753055474189,-480.0,0.00019287,2]
[373591668,1753055474198,-870.51,0.00019287,2]
[373591669,1753055474207,-480.0,0.00019287,2]
[373591670,1753055474217,-306.40038944,0.00019287,2]
[373591671,1753055474230,-480.0,0.00019287,2]
[373591672,1753055474240,-480.0,0.00019287,2]
[373591673,1753055474249,-480.0,0.00019287,2]
[373591674,1753055474258,-1482.94,0.00019287,2]
[373591675,1753055474267,-480.0,0.00019287,2]
[373591676,1753055474276,-480.0,0.00019287,2]
[373591677,1753055474288,-2642.36,0.00019287,2]
[373591678,1753055474297,-1583.24,0.00019287,2]
[373591679,1753055474307,-5286.42,0.00019287,2]
[373591680,1753055474316,-480.0,0.00019287,2]
[373591681,1753055474325,-983.96,0.00019287,2]
[373591682,1753055474335,-538.34,0.00019287,2]
[373591683,1753055474344,-480.0,0.00019287,2]
[373591684,1753055474353,-480.0,0.00019287,2]
[373591685,1753055474362,-480.0,0.00019287,2]
[373591686,1753055474372,-480.0,0.00019287,2]
[373591687,1753055474382,-480.0,0.00019287,2]
[373591688,1753055474391,-511.62,0.00019287,2]
[373591689,1753055474400,-1310.87,0.00019287,2]
[373591690,1753055474409,-480.0,0.00019287,2]
[373591691,1753055474419,-440.0,0.00019287,2]
[373591692,1753055474428,-480.0,0.00019287,2]
[373591693,1753055474438,-300.0,0.00019287,2]
[373591694,1753055474447,-733.45,0.00019287,2]
[373591695,1753055474457,-480.0,0.00019287,2]
[373591696,1753055474467,-464.28123554,0.00019287,2]
[373591697,1753055474476,-480.0,0.00019287,2]
[373591698,1753055474486,-480.0,0.00019287,2]
[373591699,1753055474496,-480.0,0.00019287,2]
[373591700,1753055474505,-480.0,0.00019287,2]
[373591701,1753055474515,-460.0,0.00019287,2]
[373591702,1753055474524,-828.32,0.00019287,2]
[373591703,1753055474534,-554.03,0.00019287,2]
[373591704,1753055474543,-373.36439197,0.00019287,2]
[373591705,1753055474553,-1137.53,0.00019287,2]
[373591706,1753055474562,-586.57,0.00019287,2]
[373591707,1753055474571,-1406.05,0.00019287,2]
[373591708,1753055474580,-480.0,0.00019287,2]
[373591709,1753055474589,-2504.7,0.00019287,2]
[373591710,1753055474598,-480.0,0.00019287,2]
[373591711,1753055474608,-6508.21,0.00019287,2]
[373591712,1753055474617,-1019.29,0.00019287,2]
[373591713,1753055474627,-480.0,0.00019287,2]
[373591714,1753055474636,-312.02062523,0.00019287,2]
[373591715,1753055474645,-480.0,0.00019287,2]
[373591716,1753055474655,-2416.16,0.00019287,2]
[373591717,1753055474663,-480.0,0.00019287,2]
[373591718,1753055474673,-480.0,0.00019287,2]
[373591719,1753055474682,-480.0,0.00019287,2]
[373591720,1753055474691,-949.94,0.00019287,2]
[373591721,1753055474700,-2180.91,0.00019287,2]
[373591722,1753055474709,-480.0,0.00019287,2]
[373591723,1753055474721,-480.0,0.00019287,2]
[373591724,1753055474731,-1638.17,0.00019287,2]
[373591725,1753055474740,-465.04302869,0.00019287,2]
[373591726,1753055474754,-440.0,0.00019287,2]
[373591727,1753055474763,-594.19,0.00019287,2]
[373591728,1753055474773,-480.0,0.00019287,2]
[373591729,1753055474782,-480.0,0.00019287,2]
[373591730,1753055474792,-669.13,0.00019287,2]
[373591731,1753055474801,-480.0,0.00019287,2]
[373591732,1753055474810,-489.3,0.00019287,2]
[373591733,1753055474819,-480.0,0.00019287,2]
[373591734,1753055474828,-460.0,0.00019287,2]
[373591735,1753055474837,-2641.11,0.00019287,2]
[373591736,1753055474847,-6204.9,0.00019287,2]
[373591737,1753055474856,-602.05331093,0.00019287,2]
[373591738,1753055474865,-782.64,0.00019287,2]
[373591739,1753055474874,-480.0,0.00019287,2]
[373591740,1753055474884,-480.0,0.00019287,2]
[373591741,1753055474893,-480.0,0.00019287,2]
[373591742,1753055474902,-1494.6,0.00019287,2]
[373591743,1753055474912,-480.0,0.00019287,2]
[373591744,1753055474921,-484.34979776,0.00019287,2]
[373591745,1753055474931,-480.0,0.00019287,2]
[373591746,1753055474940,-480.0,0.00019287,2]
[373591747,1753055474949,-480.0,0.00019287,2]
[373591748,1753055474959,-3435.49,0.00019287,2]
[373591749,1753055474968,-480.0,0.00019287,2]
[373591750,1753055474977,-480.0,0.00019287,2]
[373591751,1753055474986,-1042.19,0.00019287,2]
[373591752,1753055474996,-56.11574186,0.00019287,2]
[373591753,1753055475727,-423.88425814,0.00019287,2]
[373591754,1753055475737,-480.0,0.00019287,2]
[373591755,1753055475747,-480.0,0.00019287,2]
[373591756,1753055475759,-280.0,0.00019287,2]
[373591757,1753055475769,-7599.96,0.00019287,2]
[373591758,1753055475778,-757.09622946,0.00019287,2]
[373591759,1753055475791,-3249.10377054,0.00019287,2]
[373591760,1753055475801,-480.0,0.00019287,2]
[373591761,1753055475810,-480.0,0.00019287,2]
[373591762,1753055475819,-480.0,0.00019287,2]
[373591763,1753055475830,-404.02216496,0.00019287,2]
[373591764,1753055475839,-1563.0388606,0.00019287,2]
[373591765,1753055476342,-215.21075778,0.000169,2]
[373591766,1753055476351,-2213.98439943,0.00019068,2]
[373591767,1753055476367,-1912.01560057,0.00019068,2]
[373591768,1753055476377,-480.0,0.00019178,2]
[373591769,1753055476386,-683.37,0.00019178,2]
[373591770,1753055476398,-290.4111394,0.00019287,2]
[373591771,1753055476408,-480.0,0.00019287,2]
[373591772,1753055476417,-480.0,0.00019287,2]
[373591773,1753055476428,-802.61,0.00019287,2]
[373591774,1753055476439,-887.21351959,0.00019287,2]
[373591775,1753055476450,-1850.59648041,0.00019287,2]
[373591776,1753055476460,-460.0,0.00019287,2]
[373591777,1753055476471,-1428.49,0.00019287,2]
[373591778,1753055476482,-480.0,0.00019287,2]
[373591779,1753055476492,-480.0,0.00019287,2]
[373591780,1753055476502,-1423.65,0.00019287,2]
[373591781,1753055476511,-1176.44,0.00019287,2]
[373591782,1753055476521,-480.0,0.00019287,2]
[373591783,1753055476530,-1698.98,0.00019287,2]
[373591784,1753055476540,-480.0,0.00019287,2]
[373591785,1753055476550,-480.0,0.00019287,2]
[373591786,1753055476559,-460.0,0.00019287,2]
[373591787,1753055476570,-1420.65,0.00019287,2]
[373591788,1753055476579,-480.0,0.00019287,2]
[373591789,1753055476589,-480.0,0.00019287,2]
[373591790,1753055476598,-480.0,0.00019287,2]
[373591791,1753055476607,-467.32194496,0.00019287,2]
[373591792,1753055476616,-480.0,0.00019287,2]
[373591793,1753055476625,-1141.6,0.00019287,2]
[373591794,1753055476635,-863.32,0.00019287,2]
[373591795,1753055476645,-480.0,0.00019287,2]
[373591796,1753055476655,-5712.58,0.00019287,2]
[373591797,1753055476665,-2053.25,0.00019287,2]
[373591798,1753055476675,-725.79,0.00019287,2]
[373591799,1753055476685,-3858.72,0.00019287,2]
[373591800,1753055476696,-480.0,0.00019287,2]
[373591801,1753055476704,-480.0,0.00019287,2]
[373591802,1753055476714,-480.0,0.00019287,2]
[373591803,1753055476723,-1827.89,0.00019287,2]
[373591804,1753055476733,-3292.51,0.00019287,2]
[373591805,1753055476742,-480.0,0.00019287,2]
[373591806,1753055476759,-480.0,0.00019287,2]
[373591807,1753055476768,-1732.45,0.00019287,2]
[373591808,1753055476777,-1077.42,0.00019287,2]
[373591809,1753055476786,-480.0,0.00019287,2]
[373591810,1753055476795,-480.0,0.00019287,2]
[373591811,1753055476805,-480.0,0.00019287,2]
[373591812,1753055476814,-480.0,0.00019287,2]
[373591813,1753055476823,-850.02,0.00019287,2]
[373591814,1753055476833,-480.0,0.00019287,2]
[373591815,1753055476842,-2614.35,0.00019287,2]
[373591816,1753055476852,-1026.25,0.00019287,2]
[373591817,1753055476861,-480.0,0.00019287,2]
[373591818,1753055476870,-480.0,0.00019287,2]
[373591819,1753055476879,-1364.06,0.00019287,2]
[373591820,1753055476889,-1944.5,0.00019287,2]
[373591821,1753055476898,-647.47,0.00019287,2]
[373591822,1753055476907,-852.44,0.00019287,2]
[373591823,1753055476921,-480.0,0.00019287,2]
[373591824,1753055476930,-278.80546487,0.00019287,2]
[373591825,1753055476939,-480.0,0.00019287,2]
[373591826,1753055476949,-480.0,0.00019287,2]
[373591827,1753055476958,-480.0,0.00019287,2]
[373591828,1753055476967,-340.0,0.00019287,2]
[373591829,1753055476977,-2084.33,0.00019287,2]
[373591830,1753055476986,-514.75,0.00019287,2]
[373591831,1753055476995,-480.0,0.00019287,2]
[373591832,1753055477004,-480.0,0.00019287,2]
[373591833,1753055477014,-480.0,0.00019287,2]
[373591834,1753055477023,-584.67,0.00019287,2]
[373591835,1753055477032,-578.26,0.00019287,2]
[373591836,1753055477042,-480.0,0.00019287,2]
[373591837,1753055477055,-556.44,0.00019287,2]
[373591838,1753055477063,-1404.43,0.00019287,2]
[373591839,1753055477073,-480.0,0.00019287,2]
[373591840,1753055477082,-480.0,0.00019287,2]
[373591841,1753055477091,-480.0,0.00019287,2]
[373591842,1753055477101,-909.49,0.00019287,2]
[373591843,1753055477111,-598.52,0.00019287,2]
[373591844,1753055477120,-6912.92,0.00019287,2]
[373591845,1753055477129,-480.0,0.00019287,2]
[373591846,1753055477138,-2197.18,0.00019287,2]
[373591847,1753055477148,-443.46249469,0.00019287,2]
[373591848,1753055477157,-480.0,0.00019287,2]
[373591849,1753055477167,-6861.5,0.00019287,2]
[373591850,1753055477177,-999.53,0.00019287,2]
[373591851,1753055477187,-480.0,0.00019287,2]
[373591852,1753055477196,-505.52,0.00019287,2]
[373591853,1753055477205,-480.0,0.00019287,2]
[373591854,1753055477215,-480.0,0.00019287,2]
[373591855,1753055477224,-2522.12,0.00019287,2]
[373591856,1753055477577,-754.6,0.00019287,2]
[373591857,1753055477588,-480.0,0.00019287,2]
[373591858,1753055477598,-480.0,0.00019287,2]
[373591859,1753055477608,-979.45,0.00019287,2]
[373591860,1753055477617,-480.0,0.00019287,2]
[373591861,1753055477627,-527.68,0.00019287,2]
[373591862,1753055477637,-480.0,0.00019287,2]
[373591863,1753055477647,-1327.7,0.00019287,2]
[373591864,1753055477656,-504.29269427,0.00019287,2]
[373591865,1753055477665,-578.11,0.00019287,2]
[373591866,1753055477676,-480.0,0.00019287,2]
[373591867,1753055477685,-480.0,0.00019287,2]
[373591868,1753055477695,-460.0,0.00019287,2]
[373591869,1753055477704,-561.28,0.00019287,2]
[373591870,1753055477714,-480.0,0.00019287,2]
[373591871,1753055477724,-487.44,0.00019287,2]
[373591872,1753055477734,-483.15,0.00019287,2]
[373591873,1753055477743,-817.12,0.00019287,2]
[373591874,1753055477757,-1704.69,0.00019287,2]
[373591875,1753055477767,-442.73449763,0.00019287,2]
[373591876,1753055477776,-1378.56,0.00019287,2]
[373591877,1753055477788,-480.0,0.00019287,2]
[373591878,1753055477797,-577.6,0.00019287,2]
[373591879,1753055477807,-480.0,0.00019287,2]
[373591880,1753055477816,-480.0,0.00019287,2]
[373591881,1753055477826,-480.0,0.00019287,2]
[373591882,1753055477835,-623.1,0.00019287,2]
[373591883,1753055477844,-480.0,0.00019287,2]
[373591884,1753055477854,-480.0,0.00019287,2]
[373591885,1753055477864,-985.63,0.00019287,2]
[373591886,1753055477874,-1583.49,0.00019287,2]
[373591887,1753055477884,-480.0,0.00019287,2]
[373591888,1753055477893,-480.0,0.00019287,2]
[373591889,1753055477903,-1388.15,0.00019287,2]
[373591890,1753055477913,-480.0,0.00019287,2]
[373591891,1753055477923,-480.0,0.00019287,2]
[373591892,1753055477933,-480.0,0.00019287,2]
[373591893,1753055477942,-657.93,0.00019287,2]
[373591894,1753055477952,-480.0,0.00019287,2]
[373591895,1753055477961,-480.0,0.00019287,2]
[373591896,1753055477971,-2594.98,0.00019287,2]
[373591897,1753055477981,-480.0,0.00019287,2]
[373591898,1753055477991,-7034.27,0.00019287,2]
[373591899,1753055478001,-743.99,0.00019287,2]
[373591900,1753055478011,-480.0,0.00019287,2]
[373591901,1753055478021,-480.0,0.00019287,2]
[373591902,1753055478030,-480.0,0.00019287,2]
[373591903,1753055478041,-480.0,0.00019287,2]
[373591904,1753055478051,-440.0,0.00019287,2]
[373591905,1753055478061,-480.0,0.00019287,2]
[373591906,1753055478071,-3539.75,0.00019287,2]
[373591907,1753055478080,-1004.16,0.00019287,2]
[373591908,1753055478090,-737.48,0.00019287,2]
[373591909,1753055478100,-480.0,0.00019287,2]
[373591910,1753055478110,-1472.24,0.00019287,2]
[373591911,1753055478124,-4433.87,0.00019287,2]
[373591912,1753055478134,-445.43524349,0.00019287,2]
[373591913,1753055478144,-1445.45,0.00019287,2]
[373591914,1753055478154,-480.0,0.00019287,2]
[373591915,1753055478164,-480.0,0.00019287,2]
[373591916,1753055478174,-480.0,0.00019287,2]
[373591917,1753055478184,-480.0,0.00019287,2]
[373591918,1753055478194,-480.0,0.00019287,2]
[373591919,1753055478205,-3481.93,0.00019287,2]
[373591920,1753055478216,-802.79,0.00019287,2]
[373591921,1753055478227,-2205.42,0.00019287,2]
[373591922,1753055478237,-480.0,0.00019287,2]
[373591923,1753055478247,-480.0,0.00019287,2]
[373591924,1753055478258,-480.0,0.00019287,2]
[373591925,1753055478268,-1208.88,0.00019287,2]
[373591926,1753055478278,-2642.28,0.00019287,2]
[373591927,1753055478289,-480.0,0.00019287,2]
[373591928,1753055478300,-514.69,0.00019287,2]
[373591929,1753055478310,-480.0,0.00019287,2]
[373591930,1753055478322,-153.88679232,0.00019287,2]
[373591931,1753055478332,-1029.82,0.00019287,2]
[373591932,1753055478343,-480.0,0.00019287,2]
[373591933,1753055478353,-480.0,0.00019287,2]
[373591934,1753055478364,-1095.25,0.00019287,2]
[373591935,1753055478375,-882.72,0.00019287,2]
[373591936,1753055478385,-480.0,0.00019287,2]
[373591937,1753055478395,-480.0,0.00019287,2]
[373591938,1753055478405,-1439.85,0.00019287,2]
[373591939,1753055478415,-480.0,0.00019287,2]
[373591940,1753055478426,-953.77,0.00019287,2]
[373591941,1753055478436,-1950.55,0.00019287,2]
[373591942,1753055478446,-261.74755982,0.00019287,2]
[373591943,1753055478456,-480.0,0.00019287,2]
[373591944,1753055478466,-480.0,0.00019287,2]
[373591945,1753055478476,-480.0,0.00019287,2]
[373591946,1753055478486,-961.17,0.00019287,2]
[373591947,1753055478496,-2483.28,0.00019287,2]
[373591948,1753055478507,-1906.99,0.00019287,2]
[373591949,1753055478517,-480.0,0.00019287,2]
[373591950,1753055478527,-460.0,0.00019287,2]
[373591951,1753055478537,-1454.01,0.00019287,2]
[373591952,1753055478547,-480.0,0.00019287,2]
[373591953,1753055478557,-460.0,0.00019287,2]
[373591954,1753055478567,-1265.49,0.00019287,2]
[373591955,1753055478577,-326.0762763,0.00019287,2]
[373591956,1753055478587,-315.46089723,0.00019287,2]
[373591957,1753055478596,-480.0,0.00019287,2]
[373591958,1753055478607,-610.22,0.00019287,2]
[373591959,1753055478617,-5184.78,0.00019287,2]
[373591960,1753055478626,-480.0,0.00019287,2]
[373591961,1753055478636,-20753.93,0.00019287,2]
[373591962,1753055478646,-480.0,0.00019287,2]
[373591963,1753055478656,-1510.22,0.00019287,2]
[373591964,1753055478665,-43569.02,0.00019287,2]
[373591965,1753055478676,-567.19,0.00019287,2]
[373591966,1753055478686,-929.07,0.00019287,2]
[373591967,1753055478695,-2416.64,0.00019287,2]
[373591968,1753055478705,-3149.28,0.00019287,2]
[373591969,1753055478715,-480.0,0.00019287,2]
[373591970,1753055478725,-2652.86,0.00019287,2]
[373591971,1753055478735,-837.08,0.00019287,2]
[373591972,1753055478748,-968.5,0.00019287,2]
[373591973,1753055478757,-480.0,0.00019287,2]
[373591974,1753055478767,-420.0,0.00019287,2]
[373591975,1753055478777,-873.48,0.00019287,2]
[373591976,1753055478787,-1144.05,0.00019287,2]
[373591977,1753055478798,-665.72,0.00019287,2]
[373591978,1753055478807,-4582.78,0.00019287,2]
[373591979,1753055478818,-1162.44,0.00019287,2]
[373591980,1753055478829,-376.8120727,0.00019287,2]
[373591981,1753055478839,-480.0,0.00019287,2]
[373591982,1753055478848,-2848.38,0.00019287,2]
[373591983,1753055478858,-1300.7,0.00019287,2]
[373591984,1753055478868,-480.0,0.00019287,2]
[373591985,1753055478878,-4306.73,0.00019287,2]
[373591986,1753055478888,-460.0,0.00019287,2]
[373591987,1753055478897,-697.79,0.00019287,2]
[373591988,1753055478908,-480.0,0.00019287,2]
[373591989,1753055478917,-1116.51,0.00019287,5]
[373591990,1753055478927,-1516.36,0.00019287,2]
[373591991,1753055478937,-667.28,0.00019287,2]
[373591992,1753055478946,-480.0,0.00019287,2]
[373591993,1753055478956,-480.0,0.00019287,2]
[373591994,1753055478965,-480.0,0.00019287,2]
[373591995,1753055478975,-1503.11,0.00019287,2]
[373591996,1753055478985,-480.0,0.00019287,2]
[373591997,1753055478996,-1997.74,0.00019287,2]
[373591998,1753055479006,-8864.03,0.00019287,2]
[373591999,1753055479016,-480.0,0.00019287,2]
[373592000,1753055479026,-2254.31,0.00019287,2]
[373592001,1753055479035,-480.0,0.00019287,2]
[373592002,1753055479045,-480.0,0.00019287,2]
[373592003,1753055479055,-688.44735239,0.00019287,2]
[373592004,1753055479076,-271.0466,0.00019287,2]
[373592005,1753055479142,-500.0,0.00017533,2]
[373592006,1753055479152,-500.0,0.00017533,2]
[373592007,1753055479161,-498.2994,0.00017533,2]
[373592008,1753055479171,-500.0,0.00017533,2]
[373592009,1753055479181,-1455.33604761,0.00019287,2]
[373592010,1753055479191,-480.0,0.00019287,2]
[373592011,1753055479201,-331.54263239,0.00019287,2]
[373592012,1753055479213,-2015.04736761,0.00019287,2]
[373592013,1753055479223,-480.0,0.00019287,2]
[373592014,1753055479233,-481.79,0.00019287,2]
[373592015,1753055479242,-480.0,0.00019287,2]
[373592016,1753055479252,-3298.81,0.00019287,2]
[373592017,1753055479261,-480.0,0.00019287,2]
[373592018,1753055479271,-480.0,0.00019287,2]
[373592019,1753055479281,-1508.5,0.00019287,2]
[373592020,1753055479291,-4353.48,0.00019287,2]
[373592021,1753055479301,-480.0,0.00019287,2]
[373592022,1753055479311,-1340.37,0.00019287,2]
[373592023,1753055479321,-625.3615295,0.00019287,2]
[373592024,1753055479330,-421.58413623,0.00019287,2]
[373592025,1753055479340,-741.2,0.00019287,2]
[373592026,1753055479350,-480.0,0.00019287,2]
[373592027,1753055479359,-480.0,0.00019287,2]
[373592028,1753055479369,-529.22,0.00019287,2]
[373592029,1753055479379,-480.0,0.00019287,2]
[373592030,1753055479389,-480.0,0.00019287,2]
[373592031,1753055479398,-480.0,0.00019287,2]
[373592032,1753055479408,-2980.28,0.00019287,2]
[373592033,1753055479418,-480.0,0.00019287,2]
[373592034,1753055479428,-480.0,0.00019287,2]
[373592035,1753055479438,-1170.02,0.00019287,2]
[373592036,1753055479448,-480.0,0.00019287,2]
[373592037,1753055479457,-480.0,0.00019287,2]
[373592038,1753055479467,-480.0,0.00019287,2]
[373592039,1753055479476,-480.0,0.00019287,2]
[373592040,1753055479487,-1088.82,0.00019287,2]